fUST/lending_fUST_20260205
["ID","MTS","AMOUNT","RATE_DAILY","PERIOD"]
[404535496,1770259668506,-500.0,0.00038352,7]
[404535497,1770259668531,-500.0,0.00038352,15]
[404535498,1770259668555,-500.0,0.00038352,15]
[404535499,1770259668579,-500.0,0.00038352,7]
[404535500,1770259668606,-500.0,0.00038352,7]
[404535501,1770259668631,-500.0,0.00038352,15]
[404535502,1770259668655,-282.66887792,0.00038352,15]
[404535503,1770259668680,-200.57970189,0.00038352,7]
[404535504,1770259668705,-187.64825042,0.00038355,51]
[404535505,1770259668728,-619.67290889,0.00038356,120]
[404535506,1770259671309,-6833.48709111,0.00038356,120]
[404535507,1770259671335,-161.4,0.00042129,120]
[404535508,1770259671362,-161.4,0.00042229,120]
[404535509,1770259671386,-161.4,0.00042329,120]
[404535510,1770259671410,-161.4,0.00042429,120]
[404535511,1770259671437,-161.4,0.00042529,120]
[404535512,1770259671461,-150.0,0.00042529,120]
[404535513,1770259671484,-161.45771079,0.00042629,120]
[404535514,1770259671508,-177.0,0.00044529,120]
[404535515,1770259671534,1360.0,0.00045,2]
[404535516,1770259676345,-497.32078009,0.00045259,7]
[404535517,1770259676372,-223.05128562,0.00046529,120]
[404535518,1770259676394,-500.0,0.00049999,10]
[404535519,1770259676418,-152.0,0.0005,120]
[404535520,1770259691598,157.29508278,0.00038352,15]
[404535521,1770259761113,741.26793723,0.00028,3]
[404535522,1770259761523,741.26793723,0.00028,7]
[404535523,1770259768421,523.09967211,0.00028,3]
[404535524,1770259830383,511.0551981,0.00045,2]
[404535525,1770259830811,229.49076481,0.00035,2]
[404535542,1770259832117,-193.56281,0.00050094,2]
[404535544,1770259832127,-151.0,0.00050136,30]
[404535545,1770259832136,-152.00267521,0.00050721,2]
[404535547,1770259832145,-151.0,0.00050821,32]
[404535549,1770259832154,-151.0,0.00051506,34]
[404535551,1770259832163,-152.0,0.000516,120]
[404535553,1770259832172,-300.0,0.00051945,120]
[404535555,1770259832181,-151.0,0.00052191,36]
[404535557,1770259832191,-2019.06926852,0.00052643,120]
[404535558,1770259832200,-151.0,0.00052876,38]
[404535560,1770259832209,-151.0,0.00053094,2]
[404535561,1770259832217,-152.0,0.000532,120]
[404535562,1770259832227,-151.0,0.00053561,40]
[404535563,1770259832237,-151.0,0.00053642,2]
[404535564,1770259832248,-500.0,0.00053725,120]
[404535565,1770259832257,-500.0,0.00053725,120]
[404535566,1770259832266,-500.0,0.00053725,120]
[404535567,1770259832275,-500.0,0.00053725,120]
[404535568,1770259832283,-214.05378658,0.00053725,120]
[404535569,1770259832294,-301.89003405,0.0005419,2]
[404535570,1770259832306,-151.0,0.00054246,42]
[404535571,1770259832316,-283.17,0.00054685,120]
[404535572,1770259832325,-500.0,0.00054794,120]
[404535573,1770259832333,-152.0,0.000548,120]
[404535574,1770259832342,-237.93764803,0.00054931,120]
[404535575,1770259832351,-454.0,0.00054962,120]
[404535576,1770259832360,-278.45,0.00055,120]
[404535577,1770259832369,-152.0,0.000564,120]
[404535578,1770259832379,-152.0,0.000579,120]
[404535579,1770259832390,-791.79194958,0.00058,90]
[404535580,1770259832400,-253.62987532,0.00059151,31]
[404535581,1770259832409,-300.06441132,0.00059151,7]
[404535582,1770259832419,-152.0,0.000595,120]
[404535583,1770259832427,-500.0,0.00059645,120]
[404535584,1770259832436,-500.0,0.00060273,120]
[404535585,1770259832446,-500.0,0.00060354,120]
[404535586,1770259832455,-500.0,0.00060626,120]
[404535587,1770259832464,-152.0,0.000611,120]
[404535588,1770259832473,-500.0,0.00061984,120]
[404535589,1770259832484,-152.0,0.000627,120]
[404535590,1770259832495,-500.0,0.00063161,120]
[404535591,1770259832504,-500.0,0.00063389,120]
[404535592,1770259832512,-152.0,0.000643,120]
[404535593,1770259832523,-500.0,0.00064548,120]
[404535594,1770259832534,-500.0,0.00065753,120]
[404535595,1770259832543,-152.0,0.000659,120]
[404535596,1770259832552,-152.0,0.000675,120]
[404535597,1770259832563,-613.85103347,0.00067726,120]
[404535598,1770259832572,-326.53299467,0.00068493,2]
[404535599,1770259832582,-500.0,0.00068493,120]
[404535600,1770259832592,-152.0,0.000691,120]
[404535601,1770259832600,-4841.90599472,0.00069902,28]
[404535602,1770259832611,-27849.37753108,0.0007,30]
[404535603,1770259832619,-200.0,0.00070102,120]
[404535604,1770259832628,-152.0,0.000706,120]
[404535605,1770259832637,-500.0,0.00071156,120]
[404535606,1770259832646,-792.70662951,0.00071224,120]
[404535607,1770259832655,-500.0,0.00071232,120]
[404535608,1770259832664,-288.326146,0.0007163,120]
[404535609,1770259832673,-152.0,0.000722,120]
[404535610,1770259832682,-1444.0,0.00072603,120]
[404535611,1770259832691,-152.0,0.000738,120]
[404535612,1770259832700,-999.0,0.00075391,120]
[404535613,1770259832709,-27849.37753108,0.00075392,30]
[404535614,1770259832718,-152.0,0.000754,120]
[404535615,1770259832727,-158.6,0.000754,14]
[404535616,1770259832736,-500.0,0.00076712,120]
[404535617,1770259832746,-231.60631361,0.00076712,2]
[404535618,1770259832755,-165.0,0.00077,120]
[404535619,1770259832765,-432.489218,0.0007809,120]
[404535620,1770259832774,-168.0,0.0008,120]
[404535621,1770259832783,-383.32076389,0.00080822,7]
[404535622,1770259832792,-500.0,0.00082191,120]
[404535623,1770259832801,-150.0,0.000822,30]
[404535624,1770259832810,-195.042592,0.000822,30]
[404535625,1770259832819,-150.0,0.000822,30]
[404535626,1770259832828,-195.042592,0.000822,30]
[404535627,1770259832837,-150.0,0.000822,30]
[404535628,1770259832845,-195.042592,0.000822,30]
[404535629,1770259832854,-150.0,0.000822,30]
[404535630,1770259832864,-195.042592,0.000822,30]
[404535631,1770259832873,-150.0,0.000822,30]
[404535632,1770259832882,-195.042592,0.000822,30]
[404535633,1770259832891,-185.7962936,0.000822,30]
[404535634,1770259832900,-185.7962936,0.000822,30]
[404535635,1770259832909,-185.7962936,0.000822,30]
[404535636,1770259832917,-1330.32607089,0.00082423,2]
[404535637,1770259832926,-217.44603743,0.00082423,54]
[404535638,1770259832936,-1181.49738908,0.00082513,8]
[404535639,1770259833030,-27849.37753108,0.00082523,30]
[404535640,1770259833041,-27849.37753108,0.00082523,30]
[404535641,1770259833051,-1444.0,0.00084932,120]
[404535642,1770259833060,-500.0,0.00087671,120]
[404535643,1770259833069,-343.83335594,0.00089041,30]
[404535644,1770259833078,-600.0,0.0009,120]
[404535645,1770259833086,-2917.12,0.0009314,10]
[404535646,1770259833096,-500.0,0.0009315,120]
[404535647,1770259833105,-209.23902741,0.00093151,14]
[404535648,1770259833114,-721.0,0.00094716,31]
[404535649,1770259833123,-362.34675333,0.0009726,90]
[404535650,1770259833131,-200.0,0.00097895,120]
[404535651,1770259833140,-1000.0,0.00098,120]
[404535652,1770259833150,-500.0,0.0009863,120]
[404535653,1770259833159,-269.72,0.0009957,120]
[404535654,1770259833168,-3379.25226991,0.001,120]
[404535655,1770259833177,-500.0,0.001,120]
[404535656,1770259833186,-500.0,0.001,120]
[404535657,1770259833196,-258.40166437,0.0010137,120]
[404535658,1770259833204,-200.0,0.00101981,120]
[404535659,1770259833214,-542.37953793,0.00104109,120]
[404535660,1770259833223,-155.54327336,0.00105479,2]
[404535661,1770259833232,-227.89,0.00105479,120]
[404535662,1770259833241,-150.0,0.00109589,120]
[404535663,1770259833251,-228.4086627,0.00109589,120]
[404535664,1770259833260,-150.0,0.00115562,120]
[404535665,1770259833269,-150.531979,0.00115562,120]
[404535666,1770259833279,-151.063959,0.00115562,120]
[404535667,1770259833289,-151.595938,0.00115562,120]
[404535668,1770259833298,-152.127918,0.00115562,120]
[404535669,1770259833307,-152.659898,0.00115562,120]
[404535670,1770259833316,-153.191877,0.00115562,120]
[404535671,1770259833325,-153.723857,0.00115562,120]
[404535672,1770259833334,-154.255837,0.00115562,120]
[404535673,1770259833343,-154.787816,0.00115562,120]
[404535674,1770259833352,-150.0,0.00117808,120]
[404535675,1770259833362,-999.0,0.00119227,120]
[404535676,1770259833371,-1000.0,0.0012,120]
[404535677,1770259833380,-590.74869454,0.00125792,22]
[404535678,1770259833389,-150.0,0.00126027,120]
[404535679,1770259833398,-300.0,0.0013,120]
[404535680,1770259833407,-1330.32607085,0.00134018,120]
[404535681,1770259833416,-150.0,0.00134246,120]
[404535682,1770259833425,-292.82813359,0.00136986,120]
[404535683,1770259833434,-260.500828,0.00136986,120]
[404535684,1770259833443,-285.65626719,0.00137205,120]
[404535685,1770259833452,-285.65626719,0.00137479,120]
[404535686,1770259833461,-238.04688932,0.00137808,120]
[404535687,1770259833471,-200.0,0.00138517,120]
[404535688,1770259833481,-500.0,0.00139999,10]
[404535689,1770259833492,-500.0,0.00139999,10]
[404535690,1770259833502,-150.0,0.00142465,120]
[404535691,1770259833512,-260.500828,0.00144196,120]
[404535692,1770259833522,-1523.939084,0.00144452,120]
[404535693,1770259833534,-3000.0,0.0015,120]
[404535694,1770259833546,-237.11127579,0.00150684,120]
[404535695,1770259833556,-260.500828,0.00151406,120]
[404535696,1770259833565,-558.534,0.00154761,120]
[404535697,1770259833575,-369.0,0.00154761,2]
[404535698,1770259833585,-179.0,0.00154761,120]
[404535699,1770259833594,-420.0,0.00157761,120]
[404535700,1770259833604,-162.463,0.00157761,120]
[404535701,1770259833613,-260.500828,0.00158616,120]
[404535702,1770259833624,-200.0,0.00161863,120]
[404535703,1770259833633,-245.0,0.00162027,120]
[404535704,1770259833643,-635.93730782,0.00162154,7]
[404535705,1770259833652,-2543.74923127,0.00162154,7]
[404535706,1770259833661,-1989.28312034,0.00162154,7]
[404535707,1770259833671,-245.0,0.00162529,120]
[404535708,1770259833681,-245.0,0.00162776,7]
[404535709,1770259833690,-999.0,0.00163062,120]
[404535710,1770259833700,-245.0,0.00163474,2]
[404535711,1770259833709,-245.0,0.00164464,30]
[404535712,1770259833718,-245.0,0.00165333,2]
[404535713,1770259833727,-245.0,0.00165432,30]
[404535714,1770259833737,-260.500828,0.00165826,120]
[404535715,1770259833746,-245.0,0.00166074,2]
[404535716,1770259833756,-245.0,0.00166412,7]
[404535717,1770259833765,-245.0,0.00167202,120]
[404535718,1770259833774,-245.0,0.00167454,2]
[404535719,1770259833783,-245.0,0.00167823,2]
[404535720,1770259833793,-245.0,0.00168192,30]
[404535721,1770259833802,-245.0,0.00168325,30]
[404535722,1770259833812,-245.0,0.00168632,7]
[404535723,1770259833822,-245.0,0.001692,7]
[404535724,1770259833831,-245.0,0.00169255,7]
[404535725,1770259833841,-245.0,0.00169933,2]
[404535726,1770259833851,-245.0,0.00170165,2]
[404535727,1770259833860,-245.0,0.00170296,2]
[404535728,1770259833869,-245.0,0.00170801,2]
[404535729,1770259833879,-245.0,0.00171545,7]
[404535730,1770259833887,-260.500828,0.00173035,120]
[404535731,1770259833897,-245.0,0.00173326,120]
[404535732,1770259833908,-245.0,0.00175127,30]
[404535733,1770259833917,-245.0,0.00177626,7]
[404535734,1770259833926,-8613.29905115,0.0017999,2]
[404535735,1770259833940,-514.21856922,0.0017999,2]
[404535736,1770259833956,-850.60969334,0.0017999,2]
[404535737,1770259833986,-7324.0769,0.0017999,2]
[404535749,1770259838118,-622.31349277,0.00069999,120]
[404535750,1770259838128,-1943.27674218,0.0012,120]
[404535751,1770259838226,-152.00267521,0.00052173,2]
[404535752,1770259838236,-627.12228657,0.0012,120]
[404535753,1770259838248,-429.60097125,0.0012,120]
[404535754,1770259838258,-76.77574006,0.0017999,2]
[404535786,1770259840393,-801.1081349,0.00070002,120]
[404535788,1770259840404,-237.59915375,0.00070002,120]
[404535790,1770259840414,-11009.19183042,0.0017999,2]
[404536181,1770259845751,-978.33233533,0.00124951,120]
[404536183,1770259845763,-60.3749533,0.00124951,120]
[404536185,1770259845771,-6657.6250467,0.0017999,2]
[404536281,1770259846915,-64954.20316911,0.0017999,2]
[404536282,1770259846925,-3000.0,0.0018,120]
[404536283,1770259846934,-260.500828,0.00180245,120]
[404536284,1770259846944,-1330.32607085,0.00185614,120]
[404536285,1770259846953,-2430.93,0.00187345,10]
[404536286,1770259846962,-156864.43783337,0.00187355,120]
[404536289,1770259846984,-545.5,0.00187355,120]
[404536290,1770259846994,-20315.76101715,0.00187355,120]
[404536292,1770259847005,-1377156.26541206,0.00187355,120]
[404536294,1770259847015,-260.500828,0.00187455,120]
[404536296,1770259847024,-5000.0,0.0019,120]
[404536298,1770259847033,-2285.908626,0.00192603,120]
[404536300,1770259847042,-172.34631531,0.00192904,120]
[404536302,1770259847051,-590.74869454,0.00194655,30]
[404536304,1770259847060,-260.500828,0.00194665,120]
[404536306,1770259847070,-172.34631531,0.00195425,120]
[404536309,1770259847079,-952.0,0.00199898,120]
[404536311,1770259847088,-1000.0,0.002,120]
[404536313,1770259847097,-242.99415759,0.002,120]
[404536315,1770259847107,-1965.62440598,0.00200422,2]
[404536317,1770259847115,-3068.21684621,0.00200422,2]
[404536319,1770259847125,-480.36666258,0.00200422,2]
[404536321,1770259847133,-864.65999265,0.00200422,2]
[404536322,1770259847142,-1537.17332026,0.00200422,2]
[404536324,1770259847151,-2399.4314796,0.00200422,2]
[404536326,1770259847160,-260.500828,0.00201875,120]
[404536329,1770259847171,-500.0,0.00202115,10]
[404536331,1770259847180,-273.83745908,0.00204273,2]
[404536333,1770259847189,-614.25762687,0.00204273,2]
[404536335,1770259847198,-999.0,0.00206898,120]
[404536337,1770259847206,-260.500828,0.00209084,120]
[404536339,1770259847215,-3000.0,0.0021,120]
[404536341,1770259847224,-260.500828,0.00216294,120]
[404536342,1770259847233,-1181.49738908,0.0021998,60]
[404536343,1770259847241,-210.42936088,0.0021998,60]
[404536345,1770259847251,-224.78,0.00222,120]
[404536347,1770259847259,-260.500828,0.00223504,120]
[404536349,1770259847268,-200.0,0.00227384,120]
[404536351,1770259847276,-260.500828,0.00230714,120]
[404536353,1770259847285,-1330.32607085,0.00237209,120]
[404536355,1770259847294,-260.500828,0.00237924,120]
[404536357,1770259847303,-1350.8029409,0.00239317,120]
[404536359,1770259847312,-3000.0,0.0024,120]
[404536361,1770259847321,-158.6,0.0024,30]
[404536363,1770259847329,-260.500828,0.00245133,120]
[404536365,1770259847338,-1000.0,0.0025,120]
[404536367,1770259847347,-590.74869454,0.00250723,60]
[404536369,1770259847357,-999.0,0.00250733,120]
[404536371,1770259847366,-260.500828,0.00252343,120]
[404536373,1770259847374,-260.500828,0.00259553,120]
[404536374,1770259847384,-260.500828,0.00266763,120]
[404536376,1770259847392,-1181.49738908,0.00273962,60]
[404536378,1770259847401,-210.42936088,0.00273962,60]
[404536380,1770259847410,-590.74869454,0.00273963,60]
[404536382,1770259847419,-500.0,0.00273972,120]
[404536384,1770259847428,-500.0,0.00273972,120]
[404536386,1770259847437,-528.83921748,0.00273972,120]
[404536388,1770259847446,-500.0,0.00273972,120]
[404536390,1770259847454,-500.0,0.00273972,120]
[404536392,1770259847463,-1000.0,0.00273972,2]
[404536394,1770259847472,-150.24846515,0.00273972,120]
[404536396,1770259847484,-500.0,0.00273972,120]
[404536398,1770259847493,-500.0,0.00273972,120]
[404536400,1770259847502,-500.0,0.00273972,120]
[404536402,1770259847511,-500.0,0.00273972,120]
[404536404,1770259847520,-500.0,0.00273972,120]
[404536406,1770259847531,-500.0,0.00273972,60]
[404536408,1770259847540,-501.24790665,0.00273972,120]
[404536410,1770259847550,-550.0,0.00273972,30]
[404536412,1770259847559,-500.0,0.00273972,120]
[404536414,1770259847568,-171.78122686,0.00273972,120]
[404536416,1770259847577,-500.0,0.00273972,120]
[404536418,1770259847586,-503.93949317,0.00273972,120]
[404536419,1770259847594,-500.0,0.00273972,2]
[404536421,1770259847607,-500.0,0.00273972,120]
[404536423,1770259847616,-500.0,0.00273972,120]
[404536425,1770259847626,-500.0,0.00273972,120]
[404536426,1770259847635,-500.0,0.00273972,120]
[404536427,1770259847643,-500.0,0.00273972,120]
[404536428,1770259847652,-500.0,0.00273972,120]
[404536429,1770259847661,-500.0,0.00273972,120]
[404536431,1770259847670,-500.0,0.00273972,120]
[404536433,1770259847679,-171.26155348,0.00273972,120]
[404536434,1770259847688,-500.0,0.00273972,120]
[404536436,1770259847697,-500.43120087,0.00273972,120]
[404536438,1770259847706,-500.0,0.00273972,120]
[404536440,1770259847715,-500.0,0.00273972,120]
[404536441,1770259847724,-500.0,0.00273972,54]
[404536443,1770259847733,-1000.0,0.00273972,120]
[404536445,1770259847742,-500.0,0.00273972,120]
[404536447,1770259847751,-502.65121956,0.00273972,120]
[404536449,1770259847760,-467.7517144,0.00273972,120]
[404536450,1770259847769,-500.0,0.00273972,120]
[404536452,1770259847779,-437.32067554,0.00273972,120]
[404536454,1770259847787,-500.0,0.00273972,2]
[404536455,1770259847796,-516.13210522,0.00273972,120]
[404536456,1770259847805,-525.49673895,0.00273972,120]
[404536457,1770259847814,-540.98021468,0.00273972,120]
[404536458,1770259847823,-533.50559143,0.00273972,120]
[404536459,1770259847832,-293.79,0.00273972,120]
[404536460,1770259847841,-500.0,0.00273972,120]
[404536461,1770259847850,-500.0,0.00273972,120]
[404536462,1770259847859,-500.0,0.00273972,120]
[404536463,1770259847867,-500.0,0.00273972,120]
[404536464,1770259847876,-552.39025015,0.00273972,120]
[404536465,1770259847885,-150.0,0.00273972,120]
[404536466,1770259847894,-500.0,0.00273972,120]
[404536467,1770259847903,-500.0,0.00273972,120]
[404536468,1770259847912,-500.0,0.00273972,120]
[404536469,1770259847920,-500.0,0.00273972,120]
[404536470,1770259847930,-500.0,0.00273972,120]
[404536471,1770259847938,-500.0,0.00273972,120]
[404536472,1770259847948,-500.0,0.00273972,120]
[404536473,1770259847957,-500.0,0.00273972,120]
[404536474,1770259847966,-207.12408441,0.00273972,120]
[404536475,1770259847975,-500.0,0.00273972,120]
[404536476,1770259847986,-503.74868323,0.00273972,120]
[404536477,1770259847995,-511.27,0.00273972,120]
[404536478,1770259848007,-500.0,0.00273972,31]
[404536479,1770259848017,-500.0,0.00273972,120]
[404536480,1770259848027,-500.0,0.00273972,120]
[404536481,1770259848037,-226.93,0.00273972,120]
[404536482,1770259848046,-500.0,0.00273972,30]
[404536483,1770259848056,-500.0,0.00273972,120]
[404536484,1770259848065,-735.56,0.00273972,120]
[404536485,1770259848074,-500.0,0.00273972,120]
[404536486,1770259848084,-514.71,0.00273972,120]
[404536487,1770259848092,-500.0,0.00273972,120]
[404536488,1770259848101,-401.9,0.00273972,120]
[404536489,1770259848111,-798.05,0.00273972,120]
[404536490,1770259848122,-2241.32,0.00273972,120]
[404536491,1770259848132,-500.0,0.00273972,120]
[404536492,1770259848143,-500.0,0.00273972,120]
[404536493,1770259848152,-241.41906398,0.00273972,120]
[404536494,1770259848162,-500.0,0.00273972,120]
[404536495,1770259848171,-500.0,0.00273972,120]
[404536496,1770259848181,-500.0,0.00273972,120]
[404536497,1770259848192,-500.0,0.00273972,120]
[404536498,1770259848202,-500.0,0.00273972,2]
[404536499,1770259848211,-500.0,0.00273972,120]
[404536500,1770259848220,-500.0,0.00273972,120]
[404536501,1770259848231,-500.0,0.00273972,120]
[404536502,1770259848241,-338.79176805,0.00273972,120]
[404536503,1770259848250,-500.0,0.00273972,120]
[404536504,1770259848261,-500.0,0.00273972,120]
[404536505,1770259848272,-586.39608682,0.00273972,120]
[404536506,1770259848282,-500.0,0.00273972,120]
[404536507,1770259848292,-500.0,0.00273972,120]
[404536508,1770259848301,-500.0,0.00273972,120]
[404536509,1770259848310,-500.0,0.00273972,120]
[404536510,1770259848321,-676.11,0.00273972,120]
[404536511,1770259848330,-500.0,0.00273972,120]
[404536512,1770259848339,-500.0,0.00273972,120]
[404536513,1770259848349,-500.0,0.00273972,120]
[404536514,1770259848435,-500.0,0.00273972,120]
[404536515,1770259848455,-500.0,0.00273972,120]
[404536516,1770259848466,-500.0,0.00273972,120]
[404536517,1770259848479,-500.0,0.00273972,120]
[404536518,1770259848495,-579.20387122,0.00273972,120]
[404536519,1770259848507,-585.72854468,0.00273972,120]
[404536520,1770259848519,-500.0,0.00273972,120]
[404536521,1770259848531,-500.0,0.00273972,120]
[404536522,1770259848542,-500.0,0.00273972,120]
[404536523,1770259848551,-500.0,0.00273972,120]
[404536524,1770259848563,-500.0,0.00273972,120]
[404536525,1770259848574,-500.0,0.00273972,120]
[404536526,1770259848585,-500.0,0.00273972,120]
[404536527,1770259848595,-5658.56,0.00273972,2]
[404536528,1770259848604,-500.0,0.00273972,120]
[404536529,1770259848614,-500.0,0.00273972,120]
[404536530,1770259848622,-500.0,0.00273972,120]
[404536531,1770259848632,-500.0,0.00273972,120]
[404536532,1770259848642,-414.24542011,0.00273972,120]
[404536533,1770259848651,-277.17713735,0.00273972,120]
[404536534,1770259848660,-288.92081167,0.00273972,120]
[404536535,1770259848670,-500.0,0.00273972,120]
[404536536,1770259848679,-344.6,0.00273972,2]
[404536537,1770259848689,-2000.0,0.00273972,120]
[404536538,1770259848698,-500.0,0.00273972,120]
[404536539,1770259848708,-500.0,0.00273972,120]
[404536540,1770259848718,-185.8661489,0.00273972,120]
[404536541,1770259848727,-391.14,0.00273972,120]
[404536542,1770259848736,-150.65359743,0.00273972,120]
[404536543,1770259848746,-546.51385002,0.00273972,120]
[404536544,1770259848755,-332.34311874,0.00273972,120]
[404536545,1770259848767,-500.0,0.00273972,120]
[404536546,1770259848776,-500.0,0.00273972,120]
[404536547,1770259848785,-500.0,0.00273972,120]
[404536548,1770259848794,-500.0,0.00273972,120]
[404536549,1770259848803,-500.0,0.00273972,120]
[404536550,1770259848812,-2552.29,0.00273972,120]
[404536551,1770259848821,-500.0,0.00273972,120]
[404536552,1770259848831,-1463.91,0.00273972,21]
[404536553,1770259848840,-674.21,0.00273972,120]
[404536554,1770259848849,-500.0,0.00273972,7]
[404536555,1770259848859,-534.54,0.00273972,120]
[404536556,1770259848868,-500.0,0.00273972,120]
[404536557,1770259848877,-477.80797488,0.00273972,120]
[404536558,1770259848886,-500.0,0.00273972,120]
[404536559,1770259848895,-500.0,0.00273972,120]
[404536560,1770259848904,-771.76,0.00273972,120]
[404536561,1770259848913,-500.0,0.00273972,120]
[404536562,1770259848923,-500.0,0.00273972,120]
[404536563,1770259848932,-465.56627031,0.00273972,120]
[404536564,1770259848941,-1823.09,0.00273972,120]
[404536565,1770259848951,-500.0,0.00273972,120]
[404536566,1770259848960,-365.75628915,0.00273972,120]
[404536567,1770259848970,-500.0,0.00273972,120]
[404536568,1770259848979,-500.0,0.00273972,120]
[404536569,1770259848990,-3710.69,0.00273972,90]
[404536570,1770259849000,-500.0,0.00273972,120]
[404536571,1770259849009,-500.0,0.00273972,120]
[404536572,1770259849020,-931.5,0.00273972,120]
[404536573,1770259849030,-500.0,0.00273972,120]
[404536574,1770259849039,-658.87,0.00273972,120]
[404536575,1770259849048,-500.0,0.00273972,120]
[404536576,1770259849057,-500.0,0.00273972,120]
[404536577,1770259849066,-500.0,0.00273972,120]
[404536578,1770259849076,-500.0,0.00273972,120]
[404536579,1770259849086,-500.0,0.00273972,120]
[404536580,1770259849097,-501.69635149,0.00273972,120]
[404536581,1770259849106,-500.0,0.00273972,120]
[404536582,1770259849115,-160.51860337,0.00273972,120]
[404536583,1770259849124,-500.0,0.00273972,120]
[404536584,1770259849133,-500.0,0.00273972,120]
[404536585,1770259849143,-500.0,0.00273972,120]
[404536586,1770259849151,-215.29021098,0.00273972,120]
[404536587,1770259849161,-566.57,0.00273972,120]
[404536588,1770259849170,-506.66,0.00273972,120]
[404536589,1770259849179,-500.0,0.00273972,120]
[404536590,1770259849187,-500.0,0.00273972,120]
[404536591,1770259849197,-528.898574,0.00273972,120]
[404536592,1770259849207,-500.0,0.00273972,120]
[404536593,1770259849216,-718.56,0.00273972,120]
[404536594,1770259849226,-500.0,0.00273972,120]
[404536595,1770259849237,-500.0,0.00273972,120]
[404536596,1770259849247,-500.0,0.00273972,120]
[404536597,1770259849256,-205.88427203,0.00273972,120]
[404536598,1770259849266,-500.0,0.00273972,120]
[404536599,1770259849275,-500.0,0.00273972,120]
[404536600,1770259849284,-500.0,0.00273972,120]
[404536601,1770259849293,-500.0,0.00273972,120]
[404536602,1770259849302,-500.0,0.00273972,120]
[404536603,1770259849313,-2042.06,0.00273972,10]
[404536604,1770259849322,-151.0,0.00273973,120]
[404536605,1770259849331,-151.0,0.00273973,120]
[404536606,1770259849340,-151.0,0.00273973,120]
[404536607,1770259849349,-180.220827,0.00273973,120]
[404536608,1770259849358,-298.032316,0.00273973,120]
[404536609,1770259849367,-200.440029,0.00273973,120]
[404536610,1770259849377,-182.446301,0.00273973,120]
[404536611,1770259849388,-1324.968658,0.00273973,120]
[404536612,1770259849399,-1324.968658,0.00273973,120]
[404536613,1770259849409,-1324.968658,0.00273973,120]
[404536614,1770259849418,-1324.968658,0.00273973,120]
[404536615,1770259849428,-1324.968658,0.00273973,120]
[404536616,1770259849437,-1324.968658,0.00273973,120]
[404536617,1770259849447,-1324.968658,0.00273973,120]
[404536618,1770259849456,-1324.968658,0.00273973,120]
[404536619,1770259849465,-1324.968658,0.00273973,120]
[404536620,1770259849474,-1324.968658,0.00273973,120]
[404536621,1770259849486,-1324.968658,0.00273973,120]
[404536622,1770259849496,-1324.968658,0.00273973,120]
[404536623,1770259849506,-1324.968658,0.00273973,120]
[404536624,1770259849518,-1324.968658,0.00273973,120]
[404536625,1770259849528,-1324.968658,0.00273973,120]
[404536626,1770259849537,-1324.968658,0.00273973,120]
[404536627,1770259849546,-1324.968658,0.00273973,120]
[404536628,1770259849556,-1324.968658,0.00273973,120]
[404536629,1770259849567,-1324.968658,0.00273973,120]